fUSD/lending_fUSD_20250812
["ID","MTS","AMOUNT","RATE_DAILY","PERIOD"]
[378745902,1754999457994,-400.0,0.00041369,30]
[378745904,1754999458003,-400.0,0.00041369,30]
[378745907,1754999458014,-400.0,0.00041369,30]
[378745909,1754999458024,-405.5193077,0.00041369,30]
[378745911,1754999458033,-543.10034638,0.00041369,30]
[378745913,1754999458042,-400.0,0.00041369,30]
[378745915,1754999458051,-404.03236572,0.00041369,30]
[378745917,1754999458060,-400.0,0.00041369,30]
[378745919,1754999458069,-275.33910746,0.00041369,30]
[378745921,1754999458078,-400.0,0.00041369,30]
[378745923,1754999458087,-404.70355799,0.00041369,30]
[378745925,1754999458096,-400.0,0.00041369,30]
[378745927,1754999458106,-400.0,0.00041369,30]
[378745929,1754999458115,-400.0,0.00041369,30]
[378745931,1754999458125,-400.0,0.00041369,30]
[378745933,1754999458134,-400.0,0.00041369,30]
[378745935,1754999458143,-400.0,0.00041369,30]
[378745937,1754999458152,-400.0,0.00041369,30]
[378745939,1754999458161,-400.0,0.00041369,30]
[378745941,1754999458171,-400.0,0.00041369,30]
[378745943,1754999458180,-400.0,0.00041369,30]
[378745945,1754999458190,-400.0,0.00041369,30]
[378745947,1754999458199,-533.2205047,0.00041369,30]
[378745948,1754999458209,-400.0,0.00041369,30]
[378745950,1754999458218,-400.0,0.00041369,30]
[378745952,1754999458227,-400.0,0.00041369,30]
[378745955,1754999458237,-400.0,0.00041369,30]
[378745956,1754999458246,-400.0,0.00041369,30]
[378745958,1754999458255,-400.0,0.00041369,30]
[378745961,1754999458266,-411.30463492,0.00041369,30]
[378745962,1754999458276,-312.19,0.00041369,30]
[378745964,1754999458289,-400.0,0.00041369,30]
[378745967,1754999458298,-400.0,0.00041369,30]
[378745969,1754999458307,-400.0,0.00041369,30]
[378745970,1754999458316,-400.0,0.00041369,30]
[378745972,1754999458329,-400.0,0.00041369,30]
[378745975,1754999458339,-401.4276871,0.00041369,30]
[378745976,1754999458348,-400.0,0.00041369,30]
[378745979,1754999458358,-405.83366134,0.00041369,30]
[378745981,1754999458368,-520.79081692,0.00041369,30]
[378745983,1754999458378,-481.09,0.00041369,30]
[378745985,1754999458387,-400.0,0.00041369,30]
[378745987,1754999458396,-491.46,0.00041369,30]
[378745989,1754999458405,-400.0,0.00041369,30]
[378745990,1754999458414,-523.93,0.00041369,30]
[378745992,1754999458423,-400.0,0.00041369,30]
[378745994,1754999458432,-400.0,0.00041369,30]
[378745996,1754999458442,-400.0,0.00041369,30]
[378745999,1754999458452,-400.0,0.00041369,30]
[378746000,1754999458462,-345.51,0.00041369,30]
[378746003,1754999458472,-400.0,0.00041369,30]
[378746005,1754999458481,-218.17,0.00041369,30]
[378746006,1754999458490,-400.0,0.00041369,30]
[378746009,1754999458500,-400.0,0.00041369,30]
[378746010,1754999458509,-400.0,0.00041369,30]
[378746012,1754999458518,-400.0,0.00041369,30]
[378746014,1754999458527,-400.0,0.00041369,30]
[378746016,1754999458536,-400.0,0.00041369,30]
[378746018,1754999458546,-400.0,0.00041369,30]
[378746020,1754999458555,-400.0,0.00041369,30]
[378746022,1754999458564,-400.0,0.00041369,30]
[378746024,1754999458573,-400.0,0.00041369,30]
[378746026,1754999458582,-400.0,0.00041369,30]
[378746028,1754999458591,-400.0,0.00041369,30]
[378746030,1754999458600,-400.0,0.00041369,30]
[378746032,1754999458609,-452.04,0.00041369,30]
[378746034,1754999458618,-400.0,0.00041369,30]
[378746036,1754999458627,-405.40015282,0.00041369,30]
[378746038,1754999458636,-400.0,0.00041369,30]
[378746040,1754999458645,-400.0,0.00041369,30]
[378746042,1754999458654,-400.0,0.00041369,30]
[378746044,1754999458663,-400.0,0.00041369,30]
[378746046,1754999458672,-400.0,0.00041369,30]
[378746048,1754999458682,-400.0,0.00041369,30]
[378746050,1754999458691,-642.99,0.00041369,30]
[378746052,1754999458701,-400.0,0.00041369,30]
[378746054,1754999458710,-400.0,0.00041369,30]
[378746056,1754999458719,-400.0,0.00041369,30]
[378746058,1754999458728,-400.0,0.00041369,30]
[378746060,1754999458737,-332.24909729,0.00041369,30]
[378746062,1754999458747,-400.0,0.00041369,30]
[378746064,1754999458756,-400.0,0.00041369,30]
[378746066,1754999458765,-400.0,0.00041369,30]
[378746068,1754999458774,-400.0,0.00041369,30]
[378746070,1754999458783,-400.0,0.00041369,30]
[378746083,1754999458895,-432.52,0.00041369,30]
[378746085,1754999458906,-400.0,0.00041369,30]
[378746087,1754999458916,-400.0,0.00041369,30]
[378746089,1754999458925,-400.0,0.00041369,30]
[378746091,1754999458935,-595.93,0.00041369,30]
[378746093,1754999458944,-400.0,0.00041369,30]
[378746095,1754999458955,-400.0,0.00041369,30]
[378746097,1754999458964,-400.0,0.00041369,30]
[378746099,1754999458973,-166.55,0.00041369,30]
[378746101,1754999458983,-400.0,0.00041369,30]
[378746103,1754999458992,-403.65799596,0.00041369,30]
[378746105,1754999459002,-400.0,0.00041369,30]
[378746107,1754999459011,-400.0,0.00041369,30]
[378746109,1754999459022,-400.0,0.00041369,30]
[378746111,1754999459031,-400.0,0.00041369,30]
[378746113,1754999459040,-400.0,0.00041369,30]
[378746115,1754999459050,-400.0,0.00041369,30]
[378746117,1754999459059,-506.36452154,0.00041369,30]
[378746119,1754999459069,-400.0,0.00041369,30]
[378746121,1754999459078,-406.4589355,0.00041369,30]
[378746123,1754999459088,-400.0,0.00041369,30]
[378746125,1754999459097,-300.0,0.00041369,30]
[378746127,1754999459107,-493.83411841,0.00041369,30]
[378746129,1754999459116,-400.0,0.00041369,30]
[378746130,1754999459126,-400.0,0.00041369,30]
[378746131,1754999459135,-400.0,0.00041369,30]
[378746132,1754999459145,-81.20336058,0.00041369,30]
[378746149,1754999459396,-318.79663942,0.00041369,30]
[378746151,1754999459406,-338.13195737,0.00041369,30]
[378746273,1754999512255,11967.0,0.00037099,30]
[378746278,1754999854609,177.65,0.00013699,2]
[378746292,1755000006265,300.0,0.00025663,120]
[378746296,1755000404733,10000.0,0.00030137,120]
[378746297,1755000432546,9485.0939736,0.00037122,30]
[378746304,1755000631707,-234.66,0.00023645,2]
[378746305,1755000631717,-279.41839411,0.00025,2]
[378746306,1755000631727,-56.01160589,0.0002601,2]
[378746307,1755000631844,-193.98839411,0.0002601,2]
[378746308,1755000631858,-2234.50248668,0.00029641,2]
[378746309,1755000631955,-286.91,0.00029641,2]
[378746310,1755000632013,-1233.813301,0.00029641,2]
[378746311,1755000632024,-2161.28077001,0.00029641,2]
[378746312,1755000632034,-157.21,0.00033793,2]
[378746313,1755000632043,-333.0,0.00035226,3]
[378746314,1755000632053,-278.94601889,0.00035227,2]
[378746315,1755000632068,-1496.89357823,0.00035227,2]
[378746316,1755000632084,-3291.37818083,0.00035227,2]
[378746318,1755000632094,-150.99,0.00037122,2]
[378746320,1755000632104,-520.0,0.00037122,2]
[378746322,1755000632114,-13290.0707301,0.00037122,2]
[378746326,1755000632157,-339.38674505,0.00037122,2]
[378746328,1755000632171,-1981.95252485,0.00037122,2]
[378746329,1755000632180,-783.8,0.00037122,2]
[378746330,1755000632190,-2222.22,0.00037122,60]
[378746332,1755000632200,-538.737,0.00037878,49]
[378746334,1755000632210,-168.28354727,0.00037878,7]
[378746336,1755000632219,-500.0,0.00037878,15]
[378746337,1755000632229,-952.37520962,0.00037879,5]
[378746339,1755000632239,-753.59271144,0.00037884,2]
[378746342,1755000632255,-3934.3481365,0.00037884,2]
[378746377,1755000637622,-2744.74122083,0.00037884,2]
[378746378,1755000637676,-668.0117373,0.00037884,2]
[378746379,1755000637785,-590.89027497,0.00037884,2]
[378746380,1755000637796,-873.23729925,0.00037884,2]
[378746381,1755000637806,-374.26270085,0.00037973,3]
[378746382,1755000637818,-291.73729915,0.00037973,3]
[378746383,1755000637827,-150.0,0.00038,2]
[378746384,1755000637837,-21.5916857,0.00038326,2]
[378746385,1755000637862,-859.05261724,0.00038326,2]
[378746386,1755000637874,-119.35569706,0.00038326,2]
[378746387,1755000637883,-156.67,0.00038326,2]
[378746388,1755000637895,-226.45,0.00038333,2]
[378746389,1755000637904,-2222.22,0.00038454,60]
[378746390,1755000637913,-4728.05320653,0.00038647,2]
[378746391,1755000637922,-156.67,0.00038709,2]
[378746408,1755000638120,-150.0,0.00038779,2]
[378746411,1755000638137,-405.936,0.00038779,2]
[378746413,1755000638146,-520.0,0.00038882,6]
[378746415,1755000638156,-2872.93,0.00038978,2]
[378746417,1755000638166,-163.5,0.00039336,120]
[378746419,1755000638175,-604.16,0.0003952,2]
[378746421,1755000638184,-797.21,0.00039667,2]
[378746423,1755000638194,-467.84,0.00039667,2]
[378746425,1755000638204,-505.75,0.00039667,2]
[378746427,1755000638213,-797.59,0.00039667,2]
[378746429,1755000638223,-2222.22,0.00039786,60]
[378746431,1755000638232,-1004.0,0.0004,20]
[378746433,1755000638242,-2000.000001,0.0004,15]
[378746435,1755000638256,-167.26,0.0004019,2]
[378746437,1755000638267,-1000.0,0.000405,25]
[378746439,1755000638276,-1000.0,0.000405,25]
[378746441,1755000638285,-1000.0,0.000405,29]
[378746443,1755000638294,-797.59,0.00040626,2]
[378746445,1755000638304,-797.59,0.00040626,2]
[378746447,1755000638314,-796.07,0.00040626,2]
[378746449,1755000638325,-520.0,0.00040641,10]
[378746451,1755000638339,-200.0,0.000407,14]
[378746453,1755000638348,-500.0,0.000408,14]
[378746455,1755000638357,-296.42741199,0.00040894,15]
[378746457,1755000638366,-1802.869754,0.00040895,13]
[378746459,1755000638376,-166.50338844,0.00040895,28]
[378746461,1755000638385,-490.06874682,0.00040895,15]
[378746463,1755000638394,-1000.0,0.00040895,2]
[378746465,1755000638404,-2500.0,0.00040895,2]
[378746467,1755000638413,-800.0,0.000409,14]
[378746469,1755000638422,-166.24009982,0.000409,15]
[378746471,1755000638431,-1028.77034961,0.00040943,30]
[378746473,1755000638441,-500.0,0.00040973,5]
[378746475,1755000638450,-7385.95534484,0.00040985,3]
[378746477,1755000638462,-548.57846356,0.00040985,3]
[378746481,1755000638484,-330.47581602,0.00040985,3]
[378746605,1755000639629,-893.0,0.00038779,2]
[378746607,1755000639638,-888.0,0.00039147,3]
[378746609,1755000639648,-1332.46705833,0.00040985,3]
[378746637,1755000639902,-3087.49579717,0.00040985,3]
[378746923,1755000642815,-888.0,0.00039279,3]
[378746925,1755000642824,-2397.75619568,0.00040985,3]
[378746939,1755000642955,-1.27852385,0.00040985,3]
[378746942,1755000642986,-282.6787996,0.00040985,3]
[378746953,1755000643082,-384.61951239,0.00039779,3]
[378746965,1755000643187,-503.38048761,0.00039779,3]
[378746967,1755000643198,-1.67287621,0.00040985,3]
[378747211,1755000645599,-2016.95,0.00037122,60]
[378747232,1755000645791,-1799.434063,0.00038476,60]
[378747234,1755000645804,-217.515937,0.00038476,60]
[378747236,1755000645814,-2016.95,0.00039831,60]
[378747238,1755000645824,-7563.94189085,0.00040985,3]
[378747242,1755000645859,-29229.24400069,0.00040985,3]
[378747244,1755000645869,-5000.0,0.00040985,2]
[378747247,1755000645879,-26080.7723834,0.0004099,3]
[378747248,1755000645889,-500.0,0.00040994,120]
[378747251,1755000645900,-238.03799135,0.00040994,31]
[378747252,1755000645911,-34517.2901,0.00040995,2]
[378747254,1755000645920,-190216.9695,0.00040995,2]
[378747257,1755000645932,-1000.0,0.00040995,2]
[378747258,1755000645942,-12000.72020694,0.00040995,60]
[378747261,1755000645953,-369.95647677,0.00040995,60]
[378747263,1755000645964,-76517.32331629,0.00040995,60]
[378747265,1755000645974,-756.0,0.00041,20]
[378747267,1755000645983,-13500.0,0.00041,30]
[378747269,1755000645992,-3821.55226495,0.00041,30]
[378747271,1755000646001,-150.0,0.00041,2]
[378747273,1755000646010,-611.61,0.00041062,30]
[378747275,1755000646022,-604.92,0.00041062,30]
[378747277,1755000646031,-603.46,0.00041064,30]
[378747279,1755000646040,-604.3,0.00041065,30]
[378747281,1755000646050,-26080.7723834,0.00041065,3]
[378747282,1755000646059,-607.04,0.00041065,30]
[378747284,1755000646069,-588.4,0.00041068,30]
[378747286,1755000646079,-164.46,0.00041068,2]
[378747289,1755000646089,-501.15318685,0.00041073,5]
[378747290,1755000646098,-500.0,0.00041073,5]
[378747292,1755000646108,-503.72395412,0.00041073,5]
[378747294,1755000646117,-501.26806189,0.00041073,5]
[378747296,1755000646126,-500.76039733,0.00041073,5]
[378747298,1755000646137,-183.2246192,0.00041073,5]
[378747300,1755000646146,-500.0,0.00041073,5]
[378747302,1755000646155,-130403.861917,0.00041075,3]
[378747304,1755000646165,-23905.3681048,0.00041084,3]
[378747306,1755000646176,-385.47304823,0.00041084,3]
[378747309,1755000646195,-1287.06460514,0.00041084,3]
[378747313,1755000646226,-502.86662523,0.00041084,3]
[378747315,1755000646235,-11530.12720527,0.00041085,3]
[378747318,1755000646250,-301439.14139573,0.00041085,3]
[378747320,1755000646259,-1000.0,0.00041094,30]
[378747321,1755000646269,-1000.0,0.00041094,30]
[378747323,1755000646279,-150.0,0.00041094,36]
[378747325,1755000646290,-400.0,0.00041095,30]
[378747327,1755000646299,-396.92105892,0.00041095,30]
[378747329,1755000646308,-400.0,0.00041095,30]
[378747331,1755000646318,-400.0,0.00041095,30]
[378747333,1755000646328,-400.0,0.00041095,30]
[378747335,1755000646338,-400.0,0.00041095,30]
[378747337,1755000646347,-402.86039287,0.00041095,30]
[378747339,1755000646357,-405.60183699,0.00041095,30]
[378747341,1755000646366,-400.0,0.00041095,30]
[378747343,1755000646375,-400.0,0.00041095,30]
[378747345,1755000646384,-400.0,0.00041095,30]
[378747347,1755000646393,-400.0,0.00041095,30]
[378747349,1755000646403,-400.0,0.00041095,30]
[378747350,1755000646412,-400.0,0.00041095,30]
[378747352,1755000646422,-400.0,0.00041095,30]
[378747354,1755000646432,-400.0,0.00041095,30]
[378747356,1755000646441,-400.0,0.00041095,30]
[378747358,1755000646451,-400.0,0.00041095,30]
[378747360,1755000646460,-400.0,0.00041095,30]
[378747362,1755000646469,-401.0062909,0.00041095,30]
[378747364,1755000646479,-400.0,0.00041095,30]
[378747366,1755000646489,-400.0,0.00041095,30]
[378747368,1755000646499,-400.0,0.00041095,30]
[378747370,1755000646508,-407.18698863,0.00041095,30]
[378747372,1755000646517,-400.0,0.00041095,30]
[378747373,1755000646527,-400.0,0.00041095,30]
[378747375,1755000646536,-400.0,0.00041095,30]
[378747377,1755000646546,-400.0,0.00041095,30]
[378747379,1755000646555,-400.0,0.00041095,30]
[378747381,1755000646564,-400.0,0.00041095,30]
[378747383,1755000646573,-400.0,0.00041095,30]
[378747385,1755000646583,-400.0,0.00041095,30]
[378747387,1755000646591,-400.0,0.00041095,30]
[378747389,1755000646600,-462.83904935,0.00041095,30]
[378747391,1755000646610,-406.0565671,0.00041095,30]
[378747393,1755000646619,-402.59636609,0.00041095,30]
[378747395,1755000646629,-400.0,0.00041095,30]
[378747397,1755000646638,-400.0,0.00041095,30]
[378747399,1755000646647,-400.0,0.00041095,30]
[378747401,1755000646657,-400.0,0.00041095,30]
[378747403,1755000646666,-400.0,0.00041095,30]
[378747404,1755000646675,-400.0,0.00041095,2]
[378747406,1755000646684,-400.0,0.00041095,30]
[378747408,1755000646693,-400.0,0.00041095,30]
[378747410,1755000646702,-400.0,0.00041095,30]
[378747412,1755000646712,-400.0,0.00041095,30]
[378747414,1755000646722,-153.06403356,0.00041095,30]
[378747416,1755000646732,-400.0,0.00041095,30]
[378747418,1755000646741,-400.72589292,0.00041095,30]
[378747420,1755000646750,-400.0,0.00041095,30]
[378747422,1755000646760,-173.41380116,0.00041095,30]
[378747424,1755000646771,-400.0,0.00041095,30]
[378747426,1755000646780,-400.0,0.00041095,2]
[378747428,1755000646789,-400.0,0.00041095,30]
[378747430,1755000646798,-400.0,0.00041095,30]
[378747432,1755000646807,-400.0,0.00041095,30]
[378747434,1755000646816,-400.0,0.00041095,30]
[378747435,1755000646825,-400.0,0.00041095,30]
[378747437,1755000646835,-400.0,0.00041095,30]
[378747439,1755000646847,-400.0,0.00041095,30]
[378747441,1755000646859,-408.16,0.00041095,30]
[378747443,1755000646869,-460.59,0.00041095,30]
[378747445,1755000646878,-400.0,0.00041095,30]
[378747447,1755000646887,-400.0,0.00041095,30]
[378747449,1755000646898,-400.0,0.00041095,30]
[378747451,1755000646907,-471.6,0.00041095,30]
[378747453,1755000646916,-400.0,0.00041095,30]
[378747455,1755000646928,-400.0,0.00041095,30]
[378747457,1755000646937,-400.0,0.00041095,30]
[378747459,1755000646946,-457.49,0.00041095,30]
[378747461,1755000646955,-402.30584528,0.00041095,30]
[378747463,1755000646965,-400.0,0.00041095,30]
[378747465,1755000646974,-512.62,0.00041095,30]
[378747467,1755000646984,-400.93294399,0.00041095,30]
[378747469,1755000646994,-69.61253651,0.00041095,30]
[378747472,1755000647014,-330.38746349,0.00041095,30]
[378747474,1755000647024,-334.41524114,0.00041095,30]
[378747476,1755000647035,-65.58475886,0.00041095,30]
[378747478,1755000647045,-400.0,0.00041095,30]
[378747480,1755000647054,-105.48164114,0.00041095,30]
[378747905,1755001070185,177.65,0.00013699,2]
[378748072,1755001773407,150.0,1.13e-06,120]
[378748082,1755001831917,-300.0,0.00017999,2]
[378748083,1755001831927,-61.00327683,0.00017999,2]
[378748084,1755001831938,-792.79020627,0.00017999,2]
[378748085,1755001831950,-346.2065169,0.00017999,2]
[378748086,1755001831960,-64.0049828,0.00017999,2]
[378748087,1755001831972,-143.9950172,0.00017999,2]
[378748088,1755001831982,-214.27498279,0.00017999,2]
[378748089,1755001831995,-285.72501721,0.00017999,2]
[378748090,1755001832004,-215.00497329,0.00017999,2]
[378748099,1755001832395,-259.285,0.00017999,2]
[378748101,1755001832407,-25.71002671,0.00017999,2]
[378748102,1755001832417,-785.36737228,0.00018,2]
[378748105,1755001832430,-1307.37241139,0.00018,2]
[378748107,1755001832442,-533.64022597,0.00018,2]
[378748109,1755001832458,-542.79234401,0.00018,2]
[378748112,1755001832470,-657.62537937,0.00018,2]
[378748114,1755001832482,-5989.36105517,0.00018,2]
[378748116,1755001832494,-7497.12412796,0.00018,2]
[378748118,1755001832505,-415.69908288,0.00018,2]
[378748120,1755001832516,-939.62713897,0.00018,2]
[378748123,1755001832530,-549.19892505,0.00018,2]
[378748125,1755001832542,-11835.064715,0.00018,2]
[378748186,1755001837775,-48417.43376784,0.00018,2]
[378748187,1755001837785,-9669.91066116,0.00018,2]
[378748188,1755001837795,-347.30621483,0.00018999,2]
[378748189,1755001837805,-306.68258848,0.00018999,2]
[378748190,1755001837814,-206.70582932,0.00018999,2]
[378748191,1755001837830,-351.96093837,0.00019,2]
[378748360,1755001839836,-23572.87073601,0.00019,2]
[378748365,1755001839893,-4337.20429625,0.00019,2]
[378748371,1755001839949,-6725.39,0.00019,2]
[378748377,1755001840006,-2683.52766994,0.00019,2]
[378748379,1755001840017,-1145.49640721,0.00019,2]
[378748381,1755001840029,-456.48433017,0.00019,2]
[378748383,1755001840040,-3463.8142223,0.00019,2]
[378748386,1755001840062,-1412.84113725,0.00019,2]
[378748387,1755001840077,-259.71546597,0.00019,2]
[378748389,1755001840089,-1655.35490122,0.00019,2]
[378748644,1755001843027,-661.03999474,0.00019,2]
[378748647,1755001843039,-5641.6178549,0.00019,2]
[378748652,1755001843085,-1307.26018673,0.00019,2]
[378748654,1755001843096,-548.80180824,0.00019,2]
[378748660,1755001843143,-1325.28955449,0.00019,2]
[378748663,1755001843159,-1593.5436258,0.00019,2]
[378748668,1755001843200,-5096.8613045,0.00019,2]
[378748784,1755001844342,-1736.33370989,0.00019,2]
[378748790,1755001844399,-919.39818052,0.00019,2]
[378748793,1755001844411,-594.52024,0.00019,2]
[378748924,1755001845775,-994.3873595,0.00019,2]
[378748958,1755001846100,-87020.6524648,0.00019,2]
[378748960,1755001846113,-167532.48102729,0.00019,2]
[378748962,1755001846122,-1926.28944676,0.00019539,2]
[378748964,1755001846132,-250.0,0.00019799,2]
[378748966,1755001846143,-1926.28944674,0.00022288,2]
[378748968,1755001846153,-5000.0046032,0.00024,5]
[378748970,1755001846162,-1344.63,0.00024367,2]
[378748972,1755001846172,-72328.6536446,0.000248,2]
[378748974,1755001846181,-1536.51415209,0.00025038,2]
[378750557,1755001962890,177.65,0.00013699,2]
[378750622,1755002849792,1331.19,0.00037158,30]
[378750623,1755002850958,1000.0,0.00037158,30]
[378750635,1755003032145,-179.57507455,0.000247,2]
[378750636,1755003032155,-280.72505,0.0002479,2]
[378750637,1755003032165,-163.0,0.000248,7]
[378750638,1755003032174,-2193.09894282,0.00024934,2]
[378750639,1755003032184,-182.54271709,0.00024938,2]
[378750640,1755003032193,-280.72506,0.0002579,2]
[378750641,1755003032203,-1200.0,0.00026144,2]
[378750642,1755003032213,-500.0,0.00026145,2]
[378750643,1755003032222,-621.36114059,0.00026145,2]
[378750644,1755003032234,-276.9810867,0.00026145,2]
[378750645,1755003032362,-1601.65777271,0.00026145,2]
[378750646,1755003032372,-181.0,0.00026498,2]
[378750647,1755003032381,-300.0,0.00026498,2]
[378750648,1755003032392,-3948.38156337,0.000265,2]
[378750649,1755003032401,-150.99,0.000265,2]
[378750651,1755003032411,-280.72505,0.0002679,2]
[378750652,1755003032421,-500.0,0.0002717,2]
[378750653,1755003032430,-280.72506,0.0002779,2]
[378750654,1755003032439,-420.0,0.00028662,2]
[378750655,1755003032448,-280.72505,0.0002879,2]
[378750656,1755003032458,-163.0,0.000295,30]
[378750657,1755003032468,-280.72506,0.0002979,2]
[378750658,1755003032477,-157.21,0.00030232,2]
[378750659,1755003032490,-587.0,0.00031003,2]
[378750660,1755003032500,-500.0,0.00031984,2]
[378750661,1755003032510,-520.0,0.00032158,2]
[378750662,1755003032520,-351.98150966,0.00032263,2]
[378750663,1755003032530,-600.0,0.00032792,2]
[378750664,1755003032540,-600.0,0.00032792,2]
[378750665,1755003032550,-589.29,0.00032792,2]
[378750666,1755003032561,-150.0,0.00032876,36]
[378750668,1755003032570,-150.0,0.00033,2]
[378750669,1755003032580,-823.0,0.00033535,2]
[378750670,1755003032590,-353.48466742,0.00034384,2]
[378750671,1755003032602,-520.0,0.00034478,6]
[378750672,1755003032612,-163.5,0.00035464,30]
[378750673,1755003032622,-1000.0,0.00035534,2]
[378750674,1755003032632,-666.0,0.00035684,3]
[378750675,1755003032644,-170.0,0.00035998,7]
[378750676,1755003032654,-7.87519502,0.00036,2]
[378750677,1755003032667,-142.12480498,0.00036,2]
[378750678,1755003032676,-5244.3,0.00036199,2]
[378750679,1755003032689,-1152.0,0.00036274,2]
[378750680,1755003032699,-1031.47791106,0.00036726,2]
[378750681,1755003032709,-830.579,0.0003675,46]
[378750682,1755003032720,-1000.0,0.0003675,2]
[378750684,1755003032729,-180.734,0.0003675,46]
[378750686,1755003032747,-520.0,0.00036798,11]
[378750688,1755003032756,-163.0,0.00037,30]
[378750690,1755003032766,-168.0,0.00037022,2]
[378750691,1755003032775,-11538.92317396,0.00037067,2]
[378750692,1755003032787,-1751.14682604,0.00037067,2]
[378750694,1755003032797,-155.97,0.00037078,2]
[378750695,1755003032807,-4353.0,0.000371,30]
[378750697,1755003032817,-6139.16099106,0.00037106,2]
[378750699,1755003032827,-1729.1,0.00037116,2]
[378750701,1755003032836,-1195.23,0.00037158,60]
[378750703,1755003032846,-716.0,0.00037159,2]
[378750705,1755003032855,-893.0,0.00037159,2]
[378750707,1755003032866,-265.67,0.00037301,2]
[378750709,1755003032876,-182.54271709,0.00038278,2]
[378750711,1755003032885,-166.47,0.00038378,2]
[378750713,1755003032895,-166.47,0.00038433,2]
[378750715,1755003032904,-104.48410081,0.0003846,2]
[378750718,1755003032916,-63.51589919,0.0003846,2]
[378750720,1755003032925,-1195.23,0.00038474,60]
[378750722,1755003032935,-166.47,0.00038488,2]
[378750724,1755003032944,-150.0,0.00038542,2]
[378750725,1755003032953,-150.0,0.00038542,2]
[378750727,1755003032962,-152.88155707,0.00038542,2]
[378750729,1755003032972,-154.53379755,0.00038542,2]
[378750730,1755003032981,-159.66672837,0.00038542,2]
[378750731,1755003032993,-500.0,0.00038542,2]
[378750732,1755003033003,-500.0,0.00038542,2]
[378750733,1755003033013,-166.47,0.00038542,2]
[378750734,1755003033022,-166.47,0.00038597,2]
[378750735,1755003033031,-166.47,0.00038652,2]
[378750736,1755003033041,-166.47,0.00038707,2]
[378750737,1755003033051,-166.47,0.00038762,2]
[378750738,1755003033060,-150.0,0.00038816,2]
[378750739,1755003033070,-154.49464868,0.00038816,2]
[378750740,1755003033080,-500.0,0.00038816,2]
[378750741,1755003033090,-500.0,0.00038816,2]
[378750742,1755003033099,-541.09,0.00038904,120]
[378750743,1755003033109,-168.0,0.00038998,2]
[378750744,1755003033118,-400.0,0.00039,120]
[378750745,1755003033128,-150.0,0.00039,2]
[378750746,1755003033138,-200.0,0.0003909,2]
[378750747,1755003033148,-500.0,0.0003909,2]
[378750748,1755003033158,-550.0,0.0003909,2]
[378750749,1755003033168,-520.0,0.00039118,16]
[378750750,1755003033178,-1613.0,0.00039236,5]
[378750751,1755003033189,-166.98,0.0003927,2]
[378750752,1755003033200,-500.0,0.00039364,2]
[378750753,1755003033211,-500.0,0.00039452,2]
[378750754,1755003033220,-500.0,0.00039452,2]
[378750755,1755003033230,-150.0,0.00039452,2]
[378750756,1755003033244,-152.7185346,0.00039452,2]
[378750757,1755003033254,-500.0,0.00039452,2]
[378750758,1755003033264,-150.82724057,0.00039452,2]
[378750759,1755003033273,-150.0,0.00039452,2]
[378750760,1755003033283,-165.76,0.00039452,2]
[378750761,1755003033293,-165.76,0.00039452,2]
[378750762,1755003033303,-165.76,0.00039456,2]
[378750763,1755003033313,-500.0,0.00039638,2]